bitfinex-derivatives/quotes_BTCF0:USTF0_20250501
["timestamp","ask_amount","ask_price","bid_price","bid_amount"]
[1746070363243,0.6936509,94849.0,94848.0,0.1910317]
[1746070364246,0.5716509,94849.0,94848.0,0.1920317]
[1746070364446,0.7319509,94849.0,94848.0,0.1920317]
[1746070365449,0.7319509,94849.0,94848.0,0.1930317]
[1746070367148,0.7319509,94849.0,94848.0,0.032]
[1746070367847,0.2108598,94845.0,94844.0,0.0732]
[1746070368043,0.21863205,94845.0,94844.0,0.3032]
[1746070368741,0.28993205,94845.0,94844.0,0.3032]
[1746070368951,0.28993205,94845.0,94844.0,0.3052]
[1746070370351,0.28993205,94845.0,94844.0,0.3072]
[1746070373451,0.21863205,94845.0,94844.0,0.3072]
[1746070374247,0.21863205,94845.0,94844.0,0.36324839]
[1746070375249,0.21863205,94845.0,94844.0,0.48524839]
[1746070377147,0.36413205,94845.0,94844.0,0.3072]
[1746070378439,0.21863205,94845.0,94844.0,0.3072]
[1746070381154,0.21863205,94845.0,94844.0,0.36324839]
[1746070383046,0.21863205,94845.0,94844.0,0.48524839]
[1746070383454,0.21863205,94845.0,94844.0,0.78879999]
[1746070384957,0.21863205,94845.0,94844.0,0.57793799]
[1746070391668,0.21863205,94845.0,94844.0,0.78877889]
[1746070396867,0.0527124,94841.0,94824.0,0.1610317]
[1746070397165,0.2109254,94806.0,94803.0,0.26824954]
[1746070397370,0.9325254,94806.0,94805.0,0.04105479]
[1746070397557,0.6356454,94806.0,94805.0,0.00105479]
[1746070397756,0.6356454,94806.0,94805.0,0.01105479]
[1746070398158,0.7576454,94806.0,94805.0,0.08345479]
[1746070398358,0.7576454,94806.0,94805.0,0.08745479]
[1746070398762,0.6937254,94806.0,94805.0,0.08745479]
[1746070398966,0.7576454,94806.0,94805.0,0.01505479]
[1746070399175,0.7576454,94806.0,94805.0,0.01905479]
[1746070400267,0.8277454,94806.0,94805.0,0.01905479]
[1746070400762,0.4669454,94806.0,94805.0,0.01905479]
[1746070401064,0.8277454,94806.0,94805.0,0.01905479]
[1746070403267,0.7057454,94806.0,94805.0,0.01905479]
[1746070404274,0.5717254,94806.0,94805.0,0.16779278]
[1746070405161,0.5717254,94806.0,94805.0,0.28979278]
[1746070406973,0.2109254,94806.0,94805.0,0.28979278]
[1746070409659,0.2109254,94806.0,94805.0,0.43809278]
[1746070412569,0.210916,94811.0,94805.0,0.79889278]
[1746070412770,0.210916,94811.0,94810.0,0.2109121]
[1746070412967,0.210916,94811.0,94810.0,0.61965009]
[1746070413165,0.210916,94811.0,94810.0,0.74165009]
[1746070413674,0.210916,94811.0,94810.0,0.89125009]
[1746070414073,0.210916,94811.0,94810.0,0.89425009]
[1746070414963,0.2109107,94813.0,94812.0,0.2636351]
[1746070415173,0.2109107,94813.0,94812.0,0.67237309]
[1746070415372,0.2109107,94813.0,94812.0,0.82197309]
[1746070415872,0.2109107,94813.0,94812.0,0.76924559]
[1746070416267,0.2109107,94813.0,94812.0,0.89124559]
[1746070416871,0.2109107,94813.0,94812.0,0.89324559]
[1746070417282,0.2109107,94813.0,94812.0,0.89524559]
[1746070419170,0.0527246,94819.0,94818.0,0.2108965]
[1746070419370,0.0527246,94819.0,94818.0,0.5535861]
[1746070419571,0.0527246,94819.0,94818.0,0.4608965]
[1746070420178,0.0527246,94819.0,94818.0,0.5828965]
[1746070420371,0.0527246,94819.0,94818.0,0.5848965]
[1746070420772,0.2636288,94819.0,94818.0,0.5848965]
[1746070421185,0.2636288,94819.0,94818.0,0.374]
[1746070421479,0.3411288,94819.0,94818.0,0.5848987]
[1746070422482,0.3411288,94819.0,94818.0,0.6775883]
[1746070426677,0.8256886,94819.0,94805.0,0.00105479]
[1746070426871,0.2109766,94783.0,94771.0,0.3608]
[1746070427076,0.2109766,94783.0,94782.0,0.34427217]
[1746070427271,0.2109766,94783.0,94782.0,0.40032056]
[1746070428081,0.2119766,94783.0,94782.0,0.53132056]
[1746070428787,0.2119766,94783.0,94782.0,0.53832056]
[1746070429581,0.2109766,94783.0,94782.0,0.53532056]
[1746070430185,0.5717766,94783.0,94782.0,0.44263096]
[1746070430380,0.5717766,94783.0,94782.0,0.38658257]
[1746070430874,0.6221766,94783.0,94782.0,0.38658257]
[1746070431075,0.6973766,94783.0,94782.0,0.38658257]
[1746070431281,0.6973766,94783.0,94782.0,0.26458257]
[1746070432793,0.3365766,94783.0,94782.0,0.26458257]
[1746070433285,0.34466008,94783.0,94782.0,0.26458257]
[1746070433793,0.21906008,94783.0,94782.0,0.26458257]
[1746070434088,0.21906008,94783.0,94782.0,0.32063096]
[1746070434491,0.21906008,94783.0,94782.0,0.41332056]
[1746070435081,0.21906008,94783.0,94782.0,0.53532056]
[1746070436190,0.21906008,94783.0,94782.0,0.41332056]
[1746070438287,0.21906008,94783.0,94782.0,0.53532056]
[1746070439083,0.21906008,94783.0,94782.0,0.41332056]
[1746070439884,0.00808348,94783.0,94782.0,0.41332056]
[1746070440085,0.2109753,94784.0,94782.0,0.62429936]
[1746070440294,0.2109766,94783.0,94782.0,0.59756137]
[1746070440692,0.2109766,94783.0,94782.0,0.74629936]
[1746070441085,0.21874961,94783.0,94782.0,0.74529936]
[1746070451103,0.00777301,94783.0,94782.0,0.74529936]
[1746070451395,0.2109589,94791.0,94790.0,0.210961]
[1746070451708,0.2109589,94791.0,94790.0,0.841761]
[1746070451900,0.2109589,94791.0,94790.0,0.99049899]
[1746070452200,0.2109589,94791.0,94790.0,1.11249899]
[1746070452590,0.2109589,94791.0,94790.0,1.12707174]
[1746070453596,0.2636847,94798.0,94797.0,0.210941]
[1746070453793,0.2636847,94798.0,94797.0,0.24]
[1746070454499,0.2636847,94798.0,94797.0,0.3176]
[1746070454893,0.2636847,94798.0,94797.0,0.3206]
[1746070455088,0.2636847,94798.0,94797.0,0.3236]
[1746070455695,0.2636847,94798.0,94797.0,0.5345454]
[1746070457102,0.00810047,94800.0,94799.0,0.210941]
[1746070457300,0.2109388,94800.0,94799.0,0.59967899]
[1746070457494,0.2109388,94800.0,94799.0,0.67207899]
[1746070458190,0.2109388,94800.0,94799.0,0.79407899]
[1746070458391,0.2109328,94803.0,94802.0,0.263663]
[1746070458690,0.2109328,94803.0,94802.0,0.606063]
[1746070459292,0.2109328,94803.0,94802.0,0.6260299]
[1746070459893,0.21902298,94803.0,94802.0,0.77676789]
[1746070460094,0.21902298,94803.0,94802.0,0.89876789]
[1746070460486,0.21902298,94803.0,94802.0,0.90076789]
[1746070464105,0.21902298,94803.0,94802.0,0.77876789]
[1746070465106,0.21902298,94803.0,94802.0,0.90076789]
[1746070465893,0.00809018,94803.0,94802.0,0.90076789]
[1746070466098,0.2109091,94814.0,94813.0,0.2109054]
[1746070466298,0.2109091,94814.0,94813.0,0.4809054]
[1746070466716,0.2109091,94814.0,94813.0,0.6294054]
[1746070467302,0.2109091,94814.0,94813.0,0.7514054]
[1746070468298,0.2816091,94814.0,94813.0,0.7514054]
[1746070469205,0.2816091,94814.0,94813.0,0.6294054]
[1746070469801,0.28955477,94814.0,94813.0,0.64380893]
[1746070470199,0.28955477,94814.0,94813.0,0.76580893]
[1746070471705,0.21885477,94814.0,94813.0,0.76580893]
[1746070472105,0.21885477,94814.0,94813.0,0.64380893]
[1746070478202,0.21885477,94814.0,94813.0,0.76580893]
[1746070479201,0.21885477,94814.0,94813.0,0.64380893]
[1746070480506,0.21885477,94814.0,94813.0,0.6334054]
[1746070484816,0.21885477,94814.0,94813.0,0.68945379]
[1746070486105,0.21885477,94814.0,94813.0,0.81145379]
[1746070487117,0.21885477,94814.0,94813.0,0.68945379]
[1746070487713,0.21885477,94814.0,94813.0,0.76365379]
[1746070489121,0.21885477,94814.0,94813.0,0.88565379]
[1746070490314,0.21885477,94814.0,94813.0,0.97834339]
[1746070490810,0.00794567,94814.0,94813.0,0.97834339]
[1746070491012,0.2109076,94814.0,94813.0,0.97834339]
[1746070491221,0.21880447,94814.0,94813.0,0.97834339]
[1746070496316,0.00789687,94814.0,94813.0,0.97834339]
[1746070496519,0.2109035,94816.0,94815.0,0.2109054]
[1746070496736,0.2109035,94816.0,94815.0,0.4809054]
[1746070497015,0.2109035,94816.0,94815.0,0.62964339]
[1746070497215,0.2109035,94816.0,94815.0,0.75164339]
[1746070497621,0.2109035,94816.0,94815.0,0.75364339]
[1746070498931,0.2109035,94816.0,94815.0,0.75564339]
[1746070500829,0.21881158,94816.0,94815.0,0.75564339]
[1746070503635,0.21881158,94816.0,94815.0,0.699595]
[1746070504033,0.00790808,94816.0,94815.0,0.699595]
[1746070504245,0.2109023,94817.0,94816.0,0.2109032]
[1746070504437,0.2109023,94817.0,94816.0,0.4809032]
[1746070504621,0.2109023,94817.0,94816.0,0.5735928]
[1746070504827,0.00803228,94818.0,94817.0,0.2109009]
[1746070505022,0.2108952,94820.0,94819.0,0.2108965]
[1746070505319,0.2108952,94820.0,94819.0,0.9043861]
[1746070505530,0.2108952,94820.0,94819.0,0.8116965]
[1746070506138,0.2108952,94820.0,94819.0,0.9336965]
[1746070506322,0.0077562,94820.0,94819.0,0.9336965]
[1746070506527,0.08023994,94830.0,94824.0,0.2108854]
[1746070506736,0.08023994,94830.0,94824.0,0.543575]
[1746070507030,0.2108766,94828.0,94824.0,0.543575]
[1746070507234,0.0094828,94825.0,94824.0,0.665575]
[1746070508739,0.0094828,94825.0,94824.0,0.72162339]
[1746070509438,0.0094828,94825.0,94824.0,0.79402339]
[1746070514344,0.0719,94834.0,94833.0,0.2108654]
[1746070514532,0.2108394,94845.0,94844.0,0.2108387]
[1746070514735,0.2827394,94845.0,94844.0,0.4508387]
[1746070514936,0.2827394,94845.0,94844.0,0.5228387]
[1746070515132,0.2108394,94845.0,94844.0,0.5228387]
[1746070515333,0.2108394,94845.0,94844.0,0.6000387]
[1746070515533,0.21894004,94845.0,94844.0,0.6000387]
[1746070516245,0.21894004,94845.0,94844.0,0.7220387]
[1746070516445,0.22294004,94845.0,94844.0,0.7220387]
[1746070516947,0.21894004,94845.0,94844.0,0.7220387]
[1746070517147,0.22094004,94845.0,94844.0,0.6000387]
[1746070517449,0.22294004,94845.0,94844.0,0.6000387]
[1746070517745,0.22294004,94845.0,94844.0,0.61061659]
[1746070518146,0.22294004,94845.0,94844.0,0.73261659]
[1746070519049,0.01210064,94845.0,94844.0,0.73261659]
[1746070519257,0.22293934,94845.0,94844.0,0.73261659]
[1746070520748,0.29833934,94845.0,94844.0,0.73261659]
[1746070523248,0.22293934,94845.0,94844.0,0.73261659]
[1746070523450,0.01210064,94845.0,94844.0,0.73261659]
[1746070523750,0.01210064,94845.0,94844.0,0.78866498]
[1746070524850,0.01210064,94845.0,94844.0,0.88135458]
[1746070527758,0.22293934,94845.0,94844.0,0.88135458]
[1746070528142,0.22293934,94845.0,94844.0,0.75935458]
[1746070528857,0.22293934,94845.0,94844.0,0.66666498]
[1746070529155,0.22293934,94845.0,94844.0,0.78866498]
[1746070529347,0.22293934,94845.0,94844.0,0.86116498]
[1746070531061,0.01210064,94845.0,94844.0,0.86116498]
[1746070536453,0.01210064,94845.0,94844.0,0.95385458]
[1746070544172,0.01210064,94845.0,94844.0,1.01949458]
[1746070547475,0.08023994,94860.0,94849.0,0.0527073]
[1746070547774,0.00967968,94856.0,94855.0,0.2108165]
[1746070547968,0.00158221,94856.0,94855.0,0.4908165]
[1746070548166,0.00158221,94856.0,94855.0,0.6128165]
[1746070548779,0.00458221,94856.0,94855.0,0.7627165]
[1746070548978,0.00658221,94856.0,94855.0,0.7627165]
[1746070549173,0.00358221,94856.0,94855.0,0.7627165]
[1746070549393,0.00658221,94856.0,94855.0,0.8554061]
[1746070550183,4e-05,94881.0,94855.0,1.018124]
[1746070550376,0.11509207,94874.0,94873.0,0.6642661]
[1746070550681,0.0578,94884.0,94879.0,0.2107631]
[1746070550682,0.0791,94880.0,94879.0,0.2107631]
[1746070550883,0.0578,94892.0,94891.0,0.2107365]
[1746070551182,0.1575,94892.0,94891.0,0.6454202]
[1746070551584,0.15754,94892.0,94891.0,0.6454202]
[1746070551789,0.16564186,94892.0,94891.0,0.7993202]
[1746070551990,0.16564186,94892.0,94891.0,0.80958262]
[1746070552178,0.08724186,94892.0,94891.0,0.80958262]
[1746070552380,0.00814186,94892.0,94891.0,0.80958262]
[1746070552985,0.01014186,94892.0,94891.0,0.80958262]
[1746070553185,0.22087616,94892.0,94891.0,0.7993202]
[1746070553386,0.29367616,94892.0,94891.0,0.7993202]
[1746070553989,0.08294186,94892.0,94891.0,0.7993202]
[1746070554985,0.08294186,94892.0,94891.0,0.80960133]
[1746070555795,0.01014186,94892.0,94891.0,0.80960133]
[1746070556484,0.22087616,94892.0,94891.0,0.80960133]
[1746070561694,0.01014186,94892.0,94891.0,0.80960133]
[1746070564583,0.08274186,94892.0,94891.0,0.80960133]
[1746070565495,0.00204,94892.0,94891.0,0.80960133]
[1746070565706,0.0015,94905.0,94902.0,0.210712]
[1746070565883,0.0015,94905.0,94902.0,0.61944999]
[1746070566089,0.36084,94903.0,94902.0,0.74144999]
[1746070566596,0.36084,94903.0,94902.0,0.89224999]
[1746070566983,0.36084,94903.0,94902.0,0.89424999]
[1746070567191,0.36084,94903.0,94902.0,0.77224999]
[1746070567386,0.3608,94903.0,94902.0,0.77224999]
[1746070567587,0.36084,94903.0,94902.0,0.77224999]
[1746070568197,0.36084,94903.0,94902.0,0.89424999]
[1746070568398,0.36084,94903.0,94902.0,0.89224999]
[1746070568599,0.36084,94903.0,94902.0,0.89624999]
[1746070569288,0.36084,94903.0,94902.0,0.77424999]
[1746070569483,4e-05,94903.0,94902.0,0.77424999]
[1746070570900,0.0015,94905.0,94904.0,0.2107076]
[1746070571201,0.0015,94905.0,94904.0,0.99024559]
[1746070571900,0.0015,94905.0,94904.0,0.99124559]
[1746070572103,0.130072,94913.0,94904.0,0.99124559]
[1746070572104,9.842e-05,94922.0,94916.0,0.05604839]
[1746070572299,9.842e-05,94928.0,94925.0,0.210661]
[1746070572501,0.001,94926.0,94925.0,0.460661]
[1746070572687,0.001,94926.0,94925.0,0.538161]
[1746070572995,0.001,94926.0,94925.0,0.615661]
[1746070573689,0.001,94926.0,94925.0,0.616661]
[1746070579705,5.401e-05,94936.0,94925.0,0.406]
[1746070579893,0.3692321,94939.0,94938.0,0.2106321]
[1746070580093,0.16634244,94939.0,94938.0,0.4806321]
[1746070580603,0.16634244,94939.0,94938.0,0.6338321]
[1746070581005,0.37697234,94939.0,94938.0,0.6338321]
[1746070581993,0.37897234,94939.0,94938.0,0.6338321]
[1746070582997,0.38197234,94939.0,94938.0,0.6338321]
[1746070584490,0.38197234,94939.0,94938.0,0.64432074]
[1746070585106,0.17134244,94939.0,94938.0,0.6338321]
[1746070585606,0.38201234,94939.0,94938.0,0.6338321]
[1746070586299,0.38197234,94939.0,94938.0,0.6338321]
[1746070586616,0.22341234,94939.0,94938.0,0.6338321]
[1746070587906,0.22341234,94939.0,94938.0,0.64418217]
[1746070588302,0.01278244,94939.0,94938.0,0.79292016]
[1746070588802,0.01274244,94939.0,94938.0,0.79292016]
[1746070589004,0.01278244,94939.0,94938.0,0.79292016]
[1746070594099,0.01278244,94939.0,94938.0,0.91492016]
[1746070596206,0.01278244,94939.0,94938.0,0.90457009]
[1746070597207,0.01278244,94939.0,94938.0,0.78257009]
[1746070598206,0.01278244,94939.0,94938.0,0.90457009]
[1746070598702,0.01278244,94939.0,94938.0,0.91487361]
[1746070598907,0.00504,94939.0,94938.0,0.91487361]
[1746070599508,0.005,94939.0,94938.0,0.91487361]
[1746070599709,0.00504,94939.0,94938.0,0.91487361]
[1746070600415,0.00504,94939.0,94938.0,1.27567361]
[1746070601411,0.0016349,94947.0,94946.0,0.2106144]
[1746070601603,0.0016349,94947.0,94946.0,0.4506144]
[1746070601803,0.0016349,94947.0,94946.0,0.67485239]
[1746070602007,0.00158089,94947.0,94946.0,0.75305239]
[1746070602616,0.00262089,94947.0,94946.0,0.75305239]
[1746070603914,0.01057835,94947.0,94946.0,0.75305239]
[1746070604618,0.00262089,94947.0,94946.0,0.75305239]
[1746070604812,0.00262089,94947.0,94946.0,1.11385239]
[1746070606808,0.00105401,94956.0,94955.0,0.2105944]
[1746070607009,0.00105401,94956.0,94955.0,0.4605944]
[1746070607010,0.001,94956.0,94955.0,0.4605944]
[1746070607214,0.12304,94956.0,94955.0,0.60933239]
[1746070607513,0.12304,94956.0,94955.0,0.84023239]
[1746070607918,0.125,94956.0,94955.0,0.84023239]
[1746070608115,0.00304,94956.0,94955.0,0.84023239]
[1746070609007,0.003,94956.0,94955.0,0.84023239]
[1746070609520,0.2105711,94966.0,94965.0,0.21057]
[1746070609709,0.2105711,94966.0,94965.0,0.5832596]
[1746070609911,0.2105711,94966.0,94965.0,0.49057]
[1746070610308,0.2902711,94966.0,94965.0,0.49057]
[1746070610515,0.2932711,94966.0,94965.0,0.49057]
[1746070612120,0.4152711,94966.0,94965.0,0.49057]
[1746070614315,0.42316553,94966.0,94965.0,0.49057]
[1746070614516,0.42316553,94966.0,94965.0,0.28]
[1746070614717,0.48306553,94966.0,94965.0,0.28]
[1746070615215,0.48306553,94966.0,94965.0,0.4905723]
[1746070615919,0.48306553,94966.0,94965.0,0.28]
[1746070616424,0.48306553,94966.0,94965.0,0.4905723]
[1746070618514,0.84386553,94966.0,94965.0,0.28]
[1746070622532,0.84386553,94966.0,94965.0,0.4905723]
[1746070622715,0.78396553,94966.0,94965.0,0.4905723]
[1746070623029,0.78396553,94966.0,94965.0,0.28]
[1746070624732,0.78396553,94966.0,94965.0,0.3585]
[1746070626126,0.78096553,94966.0,94965.0,0.3585]
[1746070629540,0.78096553,94966.0,94965.0,0.4361]
[1746070632847,0.78119112,94966.0,94965.0,0.4361]
[1746070639648,0.88649112,94966.0,94965.0,0.3585]
[1746070639856,0.88649112,94966.0,94965.0,0.0785]
[1746070639857,0.94519112,94966.0,94965.0,0.0785]
[1746070642645,0.2105723,94965.0,94964.0,0.04212]
[1746070642949,0.2106122,94947.0,94943.0,0.0526551]
[1746070643253,0.2106122,94947.0,94946.0,0.31089202]
[1746070643450,0.2106122,94947.0,94946.0,0.45963001]
[1746070644558,0.2106122,94947.0,94946.0,0.46363001]
[1746070645049,0.2106122,94947.0,94946.0,0.45963001]
[1746070645255,0.3326122,94947.0,94946.0,0.46363001]
[1746070645451,0.3326122,94947.0,94946.0,0.30273799]
[1746070645754,0.3326122,94947.0,94946.0,0.30673799]
[1746070646356,0.3326122,94947.0,94946.0,0.38113799]
[1746070649261,0.2106122,94947.0,94946.0,0.38113799]
[1746070653065,0.3326122,94947.0,94946.0,0.38113799]
[1746070654261,0.2106122,94947.0,94946.0,0.38113799]
[1746070658371,0.2106122,94947.0,94946.0,0.45643799]
[1746070668375,0.3326122,94947.0,94946.0,0.45643799]
[1746070669272,0.2106122,94947.0,94946.0,0.45643799]
[1746070673567,0.08055369,94951.0,94946.0,0.81723799]
[1746070673769,0.08055369,94951.0,94950.0,0.35934349]
[1746070674086,0.08059369,94951.0,94950.0,0.60934349]
[1746070674381,0.08059369,94951.0,94950.0,0.73134349]
[1746070674780,0.08059369,94951.0,94950.0,0.88434349]
[1746070675187,0.08059369,94951.0,94950.0,0.76234349]
[1746070675481,0.08059369,94951.0,94950.0,0.76534349]
[1746070676075,0.29119699,94951.0,94950.0,0.76534349]
[1746070677079,0.2106433,94951.0,94950.0,0.76534349]
[1746070677279,0.2106433,94951.0,94950.0,0.55473799]
[1746070677479,0.2106433,94951.0,94950.0,0.55773799]
[1746070677677,0.5714433,94951.0,94950.0,0.55773799]
[1746070678278,0.6934433,94951.0,94950.0,0.55773799]
[1746070679085,0.5714433,94951.0,94950.0,0.55773799]
[1746070679276,0.6460433,94951.0,94950.0,0.55773799]
[1746070679673,0.6460433,94951.0,94950.0,0.409]
[1746070680282,0.7680433,94951.0,94950.0,0.409]
[1746070690194,0.6460433,94951.0,94950.0,0.409]
[1746070694194,0.7680433,94951.0,94950.0,0.409]
[1746070696296,0.6460433,94951.0,94950.0,0.409]
[1746070701200,0.7680433,94951.0,94950.0,0.409]
[1746070701695,0.6934433,94951.0,94950.0,0.409]
[1746070702084,0.5714433,94951.0,94950.0,0.409]
[1746070703706,0.6463033,94951.0,94950.0,0.409]
[1746070706100,0.7683033,94951.0,94950.0,0.409]
[1746070707200,0.6463033,94951.0,94950.0,0.409]
[1746070708803,0.6463033,94951.0,94950.0,0.46504839]
[1746070711102,0.7683033,94951.0,94950.0,0.46504839]
[1746070712202,0.6463033,94951.0,94950.0,0.46504839]
[1746070712401,0.64650445,94951.0,94950.0,0.46504839]
[1746070713804,0.57160445,94951.0,94950.0,0.46504839]
[1746070715901,0.57160445,94951.0,94950.0,0.409]
[1746070716107,0.69360445,94951.0,94950.0,0.409]
[1746070716304,0.69360445,94951.0,94935.0,0.16089202]
[1746070716305,0.2106366,94936.0,94935.0,0.16089202]
[1746070716607,0.5714366,94936.0,94935.0,0.16089202]
[1746070717214,0.6934366,94936.0,94935.0,0.16089202]
[1746070718106,0.6934366,94936.0,94935.0,0.16389202]
[1746070718707,0.6934366,94936.0,94935.0,0.16589202]
[1746070720006,0.6934366,94936.0,94935.0,0.16289202]
[1746070720208,0.6934366,94936.0,94935.0,0.003]
[1746070722913,0.2106432,94933.0,94932.0,0.0758]
[1746070723207,0.3326432,94933.0,94932.0,0.14]
[1746070723707,0.5094832,94933.0,94932.0,0.01953466]
[1746070723906,0.2106588,94926.0,94925.0,0.00105346]
[1746070724106,0.5714588,94926.0,94925.0,0.01105346]
[1746070724304,0.6768028,94926.0,94925.0,0.00105346]
[1746070725104,0.7988028,94926.0,94925.0,0.00105346]
[1746070726013,0.7988028,94926.0,94925.0,0.00505346]
[1746070726314,0.7988028,94926.0,94925.0,0.00805346]
[1746070727014,0.6934588,94926.0,94925.0,0.00805346]
[1746070727615,0.6934588,94926.0,94925.0,0.11805346]
[1746070735619,0.2106654,94923.0,94922.0,0.00158024]
[1746070735805,0.2106654,94923.0,94922.0,0.01158024]
[1746070736210,0.3326654,94923.0,94922.0,0.01158024]
[1746070736617,0.0526686,94919.0,94915.0,0.0327778]
[1746070736829,0.0526669,94922.0,94886.0,0.21357832]
[1746070736830,0.0526752,94907.0,94900.0,0.04]
[1746070737023,0.210712,94902.0,94901.0,0.0732]
[1746070737210,0.571512,94902.0,94901.0,0.1632]
[1746070737410,0.571512,94902.0,94901.0,0.31193799]
[1746070738622,0.572512,94902.0,94901.0,0.31993799]
[1746070739517,0.58057922,94902.0,94901.0,0.31993799]
[1746070739917,0.58057922,94902.0,94901.0,0.39653799]
[1746070740122,0.70257922,94902.0,94901.0,0.39653799]
[1746070740314,0.70257922,94902.0,94901.0,0.40353799]
[1746070741123,0.58057922,94902.0,94901.0,0.40353799]
[1746070742822,0.58057922,94902.0,94901.0,0.61425229]
[1746070743018,0.21977922,94902.0,94901.0,0.61425229]
[1746070743324,0.21977922,94902.0,94901.0,0.73625229]
[1746070743325,0.00910722,94902.0,94901.0,0.73625229]
[1746070743524,0.21981922,94902.0,94901.0,0.73625229]
[1746070746114,0.21981922,94902.0,94901.0,0.61425229]
[1746070747119,0.21981922,94902.0,94901.0,0.73625229]
[1746070747716,0.00910722,94902.0,94901.0,0.84162429]
[1746070748020,0.21977922,94902.0,94901.0,0.63090999]
[1746070748326,0.21981922,94902.0,94901.0,0.63090999]
[1746070748518,0.21981922,94902.0,94901.0,0.52553799]
[1746070749124,0.21981922,94902.0,94901.0,0.40353799]
[1746070750624,0.21881922,94902.0,94901.0,0.40353799]
[1746070750826,0.21881922,94902.0,94901.0,0.39853799]
[1746070751836,0.21881922,94902.0,94901.0,0.39253799]
[1746070754716,0.21881922,94902.0,94901.0,0.3364896]
[1746070754917,0.21881922,94902.0,94901.0,0.39253799]
[1746070755326,0.21881922,94902.0,94901.0,0.2438]
[1746070755526,0.29341922,94902.0,94901.0,0.2438]
[1746070756230,0.41541922,94902.0,94901.0,0.2438]
[1746070756530,0.41541922,94902.0,94901.0,0.2428]
[1746070756828,0.41541922,94902.0,94901.0,0.2418]
[1746070757422,0.41541922,94902.0,94901.0,0.2408]
[1746070757920,0.41541922,94902.0,94901.0,0.2418]
[1746070758730,0.41541922,94902.0,94901.0,0.60125229]
[1746070758731,0.34081922,94902.0,94901.0,0.60125229]
[1746070759026,0.13006722,94902.0,94901.0,0.60125229]
[1746070759226,0.00810722,94902.0,94901.0,0.72325229]
[1746070759427,0.00806722,94902.0,94901.0,0.72325229]
[1746070759622,0.2107112,94903.0,94902.0,0.210712]
[1746070759824,0.2107112,94903.0,94902.0,0.61944999]
[1746070760028,0.2107112,94903.0,94902.0,0.76644999]
[1746070761330,0.2107112,94903.0,94902.0,0.76744999]
[1746070761725,0.2107512,94903.0,94902.0,0.76944999]
[1746070762125,0.2107512,94903.0,94902.0,0.89144999]
[1746070762332,0.21846593,94903.0,94902.0,0.89144999]
[1746070762733,0.21846593,94903.0,94902.0,0.89244999]
[1746070765339,4e-05,94903.0,94902.0,0.99782199]
[1746070765637,0.21074611,94911.0,94910.0,0.2106943]
[1746070765839,0.2106921,94911.0,94910.0,1.10559628]
[1746070766040,0.2107321,94911.0,94910.0,1.10559628]
[1746070766232,0.2107321,94911.0,94910.0,1.37629628]
[1746070767133,0.2107321,94911.0,94910.0,1.27093229]
[1746070770143,0.2107321,94911.0,94910.0,1.14893229]
[1746070770735,4e-05,94911.0,94910.0,1.14893229]
[1746070771434,0.2106829,94916.0,94915.0,0.2106832]
[1746070771635,0.21878032,94916.0,94915.0,0.63942119]
[1746070772344,0.21878032,94916.0,94915.0,0.79032119]
[1746070772644,0.21878032,94916.0,94915.0,0.80080055]
[1746070772847,0.21978032,94916.0,94915.0,0.80080055]
[1746070773143,0.22078032,94916.0,94915.0,0.79032119]
[1746070778547,0.22077842,94916.0,94915.0,0.79032119]
[1746070780349,0.22077842,94916.0,94915.0,0.57963799]
[1746070780548,0.29457842,94916.0,94915.0,0.57963799]
[1746070782244,0.77737842,94916.0,94915.0,0.28]
[1746070783853,0.78787518,94916.0,94915.0,0.28]
[1746070785647,0.77737842,94916.0,94915.0,0.28]
[1746070786148,0.29457842,94916.0,94915.0,0.3726896]
[1746070786541,0.29461842,94916.0,94915.0,0.3726896]
[1746070786746,0.29461842,94916.0,94915.0,0.5833728]
[1746070786945,0.29461842,94916.0,94915.0,0.7338728]
[1746070787153,0.29461842,94916.0,94915.0,0.6451896]
[1746070788248,0.29461842,94916.0,94915.0,0.5231896]
[1746070789153,0.41661842,94916.0,94915.0,0.5231896]
[1746070789754,0.34281842,94916.0,94915.0,0.78992119]
[1746070789955,0.34277842,94916.0,94915.0,0.78992119]
[1746070790158,0.22081842,94916.0,94915.0,0.78992119]
[1746070792352,0.29511842,94916.0,94915.0,0.78992119]
[1746070795862,0.29507842,94916.0,94915.0,0.78992119]
[1746070796063,0.29511842,94916.0,94915.0,0.78992119]
[1746070804063,0.01013742,94916.0,94915.0,0.78992119]
[1746070804465,0.01009742,94916.0,94915.0,0.78992119]
[1746070804766,0.22077842,94916.0,94915.0,0.78992119]
[1746070805067,0.22077842,94916.0,94915.0,0.91192119]
[1746070805267,0.22081842,94916.0,94915.0,0.91192119]
[1746070807166,0.22081842,94916.0,94915.0,0.78992119]
[1746070807665,0.22081842,94916.0,94915.0,0.57923799]
[1746070807869,0.22081842,94916.0,94915.0,0.42873799]
[1746070808176,0.34281842,94916.0,94915.0,0.28]
[1746070808373,0.42011842,94916.0,94915.0,0.28]
[1746070808675,0.42011842,94916.0,94841.0,0.3608]
[1746070808676,0.3608,94909.0,94841.0,0.3608]
[1746070808969,0.3608,94909.0,94859.0,0.46064183]
[1746070808970,0.2108053,94860.0,94859.0,0.46064183]
[1746070809157,0.3328053,94860.0,94859.0,0.46064183]
[1746070809962,0.3328053,94860.0,94859.0,0.47164183]
[1746070810370,0.3328053,94860.0,94859.0,0.46064183]
[1746070810669,0.3608,94866.0,94859.0,1.15161664]
[1746070810967,0.0526999,94863.0,94861.0,0.2108031]
[1746070811167,0.2634986,94863.0,94862.0,0.1468]
[1746070811365,0.2634986,94863.0,94862.0,0.86096721]
[1746070811569,0.2634986,94863.0,94862.0,1.07176811]
[1746070812371,0.2634986,94863.0,94862.0,1.07876811]
[1746070812868,0.2107929,94867.0,94866.0,0.2107907]
[1746070813066,0.2107929,94867.0,94866.0,0.8215907]
[1746070813265,0.2107929,94867.0,94866.0,0.6108]
[1746070813470,0.13317111,94874.0,94866.0,1.44003653]
[1746070813671,0.3517687,94874.0,94873.0,0.47416721]
[1746070813872,0.0883009,94874.0,94873.0,0.96494371]
[1746070814063,0.0883009,94874.0,94873.0,1.44201303]
[1746070814462,0.0883009,94874.0,94873.0,1.59471303]
[1746070814673,0.10726896,94882.0,94881.0,0.2107587]
[1746070814875,0.10726896,94882.0,94881.0,0.92492591]
[1746070815067,0.10726896,94882.0,94881.0,1.40199523]
[1746070815068,0.10730896,94882.0,94881.0,1.40199523]
[1746070815571,0.10730896,94882.0,94881.0,1.55199523]
[1746070815975,0.2107525,94884.0,94883.0,0.2107519]
[1746070816271,0.2107475,94887.0,94886.0,0.68491441]
[1746070816472,0.2107475,94887.0,94886.0,1.07496721]
[1746070816473,0.00781557,94887.0,94886.0,1.07496721]
[1746070816670,0.2107451,94888.0,94886.0,1.07496721]
[1746070816873,0.2107451,94888.0,94887.0,0.62751379]
[1746070817075,0.2107451,94888.0,94887.0,1.11491261]
[1746070817676,0.2107851,94888.0,94887.0,1.11491261]